Cogmind - Beta 10.2 @@@ ROGUE MODE // 2021.03.28 @ 17:09:17 Player: aperiodic Result: Destroyed by 8R-AWN with 8R-AWN's Boregun Performance ------------- Evolutions (1) 500 Regions Visited (5) 1000 Robots Destroyed (70) 350 Value Destroyed (1422) 1422 Prototype IDs (29) 580 Alien Tech Used (0) 0 Bonus (373) 373 TOTAL SCORE: 4225 Bonus ------- Follower Combat Kills 110 Aligned with FarCom 300 Friendly Fire -37 Cogmind --------- Core Integrity 0/400 Matter 201/300 Energy 100/100 System Corruption 0% Temperature Cool (0) Movement Core (1400) Ox27 Location -9/Exiles Parts ------- > --- POWER (1) -------- (None) > --- PROPULSION (2) --- (None) > --- UTILITY (4) ------ Humpback > --- WEAPON (2) ------- Katana Katana > --- INVENTORY (24) --- Heavy Ion Engine Light Treads Improved Flight Unit Improved Flight Unit Large Storage Unit Large Storage Unit High-capacity Matter Pod (200) Modified TNC Hacking Suite Improved EM Shotgun Improved Assault Rifle Improved Assault Rifle Improved Assault Rifle Shock Bomb Launcher Rocket Launcher Field Lobotomy Kit Plasma Cutter Stasis Trap (100%) Peak State ------------ > --- POWER ------------ Heavy Ion Engine > --- PROPULSION ------- Light Treads Armored Treads > --- UTILITY ---------- Humpback Advanced Targeting Computer Medium Armor Plating > --- WEAPON ----------- Improved Assault Rifle Improved Assault Rifle > --- INVENTORY -------- Heavy Ion Engine Reinforced Deuterium Engine Fission Core Fission Core Light Treads Improved Flight Unit Improved Flight Unit Large Storage Unit Large Storage Unit High-capacity Matter Pod Modified TNC Medium Armor Plating Hacking Suite Improved EM Shotgun Improved Assault Rifle Shock Bomb Launcher Rocket Launcher Field Lobotomy Kit Plasma Cutter Katana Katana Stasis Trap Stasis Trap [Rating: 27] Favorites ----------- Power Heavy Ion Engine Engine Heavy Ion Engine Propulsion Light Treads Treads Light Treads Utility Large Storage Unit Storage Large Storage Unit Processor Advanced Targeting Computer Protection Medium Armor Plating Weapon Improved Assault Rifle Energy Gun Improved EM Shotgun Ballistic Gun Improved Assault Rifle Ballistic Cannon Light Cannon Launcher Rocket Launcher Special Weapon Mining Laser Slashing Weapon Katana Build | -11 -10 -10 -9 -9 -9 ------- Run | Scr Mat Min Mat Min Exi Slots Evolved 2 | . . . 2 . . Power . | . . . . . . Propulsion . | . . . . . . Utility 2 | . . . 2 . . Weapon . | . . . . . . Parts Attached 62 | 8 15 . 25 6 8 Power 3 | 1 . . 2 . . Engine 3 | 1 . . 2 . . Core . | . . . . . . Reactor . | . . . . . . Propulsion 8 | 2 . . 6 . . Treads 8 | 2 . . 6 . . Leg . | . . . . . . Wheel . | . . . . . . Hover . | . . . . . . Flight . | . . . . . . Utility 14 | 2 1 . 8 . 3 Device . | . . . . . . Storage 7 | 2 1 . 3 . 1 Processor 1 | . . . 1 . . Hackware . | . . . . . . Protection 6 | . . . 4 . 2 Artifact . | . . . . . . Weapon 37 | 3 14 . 9 6 5 Energy Gun 8 | 1 2 . 5 . . Energy Cannon . | . . . . . . Ballistic Gun 13 | 2 4 . 3 4 . Ballistic Cannon 4 | . 4 . . . . Launcher 2 | . . . . 1 1 Special Weapon 5 | . 4 . . . 1 Impact Weapon . | . . . . . . Slashing Weapon 5 | . . . 1 1 3 Piercing Weapon . | . . . . . . Special Melee Weapon . | . . . . . . Unidentified Prototypes 1 | . . . 1 . . Parts Lost 10 | . . . 5 . 5 Power 2 | . . . 1 . 1 Propulsion 4 | . . . 2 . 2 Utility 3 | . . . 1 . 2 Weapon 1 | . . . 1 . . Highest Loss Streak 5 | . . . 5 . 4 Average Slot Usage (%) 96 | . 100 100 95 100 87 Engine 11 | . 14 14 10 11 10 Treads 23 | . 28 28 21 22 20 Storage 22 | . 28 28 22 22 14 Processor 7 | . . . 10 11 9 Protection 6 | . . . 8 11 9 Energy Gun 4 | . 2 . 15 . . Ballistic Gun 12 | . 16 . 3 21 18 Ballistic Cannon 6 | . 7 28 2 . . Naked Turns . | . . . . . . Heaviest Build 110 | 17 31 31 53 53 110 Greatest Support 40 | 40 40 40 40 40 40 Greatest Overweight (x) 2 | . . . 1 1 2 Average Overweight (x) . | . . . . 1 1 Largest Inventory Capacity 30 | 8 12 12 16 16 30 Average Capacity 14 | 5 10 12 13 16 22 Most Carried 23 | 4 11 12 16 16 23 Average Carried 13 | 2 6 11 13 16 18 Final Capacity 24 | 8 12 12 16 16 24 Final Carried 18 | 3 11 11 16 16 18 Class Distribution -------------------- 87% | Mutant 12% | Hauler-Mutant Dominant Class ---------------- Mutant | -10/Materials Mutant | -10/Mines Mutant | -9/Materials Mutant | -9/Mines Hauler-Mutant | -9/Exiles Resources | -11 -10 -10 -9 -9 -9 ----------- Run | Scr Mat Min Mat Min Exi Matter Collected 1593 | 298 331 107 676 177 4 Remotely . | . . . . . . Salvage Created 2082 | 100 401 35 1203 326 17 Parts 141 | 10 22 7 72 30 . Haulers Intercepted 5 | . . . 5 . . Recyclers Shooed . | . . . . . . Parts Field Recycled . | . . . . . . Retrieved Matter . | . . . . . . Parts Self-Destructed . | . . . . . . Prevented . | . . . . . . Kills | -11 -10 -10 -9 -9 -9 ------- Run | Scr Mat Min Mat Min Exi Combat Hostiles Destroyed 48 | . 10 1 21 13 3 Melee 4 | . . . 1 2 1 Guns 27 | . 8 . 10 9 . Cannons 11 | . 2 1 8 . . AOE 6 | . . . 2 2 2 Classes Destroyed 13 | 2 4 2 4 . 1 Worker 5 | . . 1 1 3 . Builder 2 | . . . 2 . . Tunneler 2 | 2 . . . . . Hauler 5 | . . . 5 . . Recycler 2 | 1 1 . . . . Mechanic 1 | . . 1 . . . Operator 2 | . 1 . 1 . . Watcher 6 | . 2 . 4 . . Swarmer 19 | . 3 1 5 10 . Grunt 17 | . 7 . 8 2 . Duelist 2 | . . . 1 1 . Sentry 7 | . . . 7 . . Assembled 3 | . . . . . 3 Best Kill Streak 8 | 3 3 1 8 4 3 Combat Bots Only 6 | . 3 1 6 4 3 Max Kills in Single Turn 3 | 1 2 1 3 2 1 Gunslinging 1 | . 1 . . 1 . Exploded 2 | . . . 1 2 1 Melee 1 | . . . 1 1 1 Uniques/NPCs Destroyed . | . . . . . . Combat | -11 -10 -10 -9 -9 -9 -------- Run | Scr Mat Min Mat Min Exi Damage Taken 2908 | . 249 253 943 327 1136 Core 466 | . 49 17 110 28 262 Absorbed by Shields 96 | . . . . . 96 Core Remaining (%) 86 | 100 . 73 . . . Volleys Fired 153 | 6 41 14 63 17 12 Largest 2 | 2 2 2 2 2 2 Hottest 100 | 60 100 70 90 46 56 Shots Fired 287 | 12 73 28 126 33 15 Gun 178 | 12 48 . 81 32 5 Cannon 89 | . 16 28 45 . . Launcher 4 | . . . . 1 3 Special 16 | . 9 . . . 7 Kinetic 198 | 6 55 28 72 32 5 Thermal 16 | . 9 . . . 7 Explosive 4 | . . . . 1 3 Electromagnetic 69 | 6 9 . 54 . . Robot Hit Streak 24 | 9 18 10 23 24 4 Robot Miss Streak 4 | . 1 2 4 1 2 Penetration Max . | . . . . . . Secondary Targets 3 | . 2 . . 1 . Max Gunslinging Chain 1 | . 1 . . 1 . Shots Hit Robots 238 | 9 48 20 96 30 35 Core Hits 109 | 4 20 4 53 16 12 Critical Hits 4 | . . 1 1 . 2 Critical Kills 1 | . . . 1 . . Critical Parts Destroyed 1 | . . 1 . . . Melee Attacks 45 | . . . 2 5 38 Impact . | . . . . . . Slashing 45 | . . . 2 5 38 Piercing . | . . . . . . Sneak Attacks . | . . . . . . Combat Hostiles . | . . . . . . Follow-up Attacks 3 | . . . . . 3 Damage Inflicted 4850 | 113 669 356 1965 705 1042 Guns 2058 | 113 440 . 1133 372 . Cannons 1103 | . 229 349 525 . . Explosions 533 | . . . 276 146 111 Melee 1128 | . . . 31 170 927 Ramming 24 | . . 7 . 17 . Kinetic 2132 | 35 585 349 791 372 . Thermal 280 | . . . 276 . 4 Explosive 257 | . . . . 146 111 Electromagnetic 1029 | 78 84 . 867 . . Impact . | . . . . . . Slashing 1128 | . . . 31 170 927 Piercing . | . . . . . . Highest Corruption . | . . . . . . Average Corruption . | . . . . . . Corruption Purged . | . . . . . . Overload Shots . | . . . . . . Overflow Damage 48 | . . 9 12 3 24 Projectiles 9 | . . 9 . . . Explosions 12 | . . . 12 . . Melee 27 | . . . . 3 24 Knockbacks 13 | . 5 6 2 . . Impact . | . . . . . . Kinetic 13 | . 5 6 2 . . Secondary . | . . . . . . Self-Inflicted Damage 90 | . . . 35 22 33 Shots 5 | . . . 3 1 1 Rammed 6 | . . 3 . 3 . Targets Rammed 7 | . . 3 . 4 . Kicked . | . . . . . . Crushed 1 | . . . . 1 . Highest Temperature 138 | . 54 63 138 . . Average Temperature 29 | . 14 23 38 . . Received Heat Transfer 492 | . 114 69 291 18 . Siege Activations . | . . . . . . Robots Corrupted . | . . . . . . Combat Hostiles . | . . . . . . Parts Fried 6 | . . . 6 . . Impact Corruptions . | . . . . . . Robots Melted . | . . . . . . Combat Hostiles . | . . . . . . Parts Melted . | . . . . . . Heat Transferred 386 | . . . 350 . 36 Parts Sabotaged . | . . . . . . Parts Stolen . | . . . . . . Parts Stripped . | . . . . . . Power Chain Reactions 5 | . . . 5 . . Missiles Intercepted . | . . . . . . Alert | -11 -10 -10 -9 -9 -9 ------- Run | Scr Mat Min Mat Min Exi Peak Influence 403 | 15 166 150 403 234 . Initial 20 | . 9 20 19 4 . Average 91 | 4 63 60 171 59 . Maximum Alert Level 2 | . . . 2 1 . Low Security (%) 84 | 100 100 100 60 84 . Level 1 15 | . . . 38 15 . Level 2 . | . . . 1 . . Level 3 . | . . . . . . Level 4 . | . . . . . . Level 5 . | . . . . . . High Security . | . . . . . . Max Security . | . . . . . . Squads Dispatched 3 | . 1 1 1 . . Investigation 1 | . 1 . . . . Extermination . | . . . . . . Reinforcement 1 | . . . 1 . . Assault 1 | . . 1 . . . Garrison . | . . . . . . Intercept . | . . . . . . Construction Impeded . | . . . . . . Haulers Reinforced . | . . . . . . Stealth | -11 -10 -10 -9 -9 -9 --------- Run | Scr Mat Min Mat Min Exi Distress Signals 5 | . 2 . 3 . . Communications Jammed . | . . . . . . Distress Signals . | . . . . . . Times Spotted 93 | . 23 16 36 13 5 Peak Tracking Total 9 | . 4 3 4 4 9 Tactical Retreats 7 | . 1 6 . . . Traps | -11 -10 -10 -9 -9 -9 ------- Run | Scr Mat Min Mat Min Exi Traps Triggered 3 | . 1 . 1 . 1 Indirectly . | . . . . . . Trap Hack Attempts . | . . . . . . Triggered . | . . . . . . Disarmed . | . . . . . . Reprogrammed . | . . . . . . Reused . | . . . . . . Traps Extracted . | . . . . . . Installed 1 | . . . . . 1 Triggered . | . . . . . . Exploded 3 | . . . . . 3 Machines | -11 -10 -10 -9 -9 -9 ---------- Run | Scr Mat Min Mat Min Exi Machines Disabled 6 | . 1 . 2 . 3 Max in Single Turn 2 | . 1 . 1 . 2 Machines Sabotaged . | . . . . . . Garrisons Compromised . | . . . . . . Overloaded Fab Kills . | . . . . . . Fab Network Shutdowns . | . . . . . . Hacking | -11 -10 -10 -9 -9 -9 --------- Run | Scr Mat Min Mat Min Exi Machines Accessed 17 | . 6 2 7 . 2 Terminals 12 | . 6 1 5 . . Fabricators . | . . . . . . Repair Stations 2 | . . . 2 . . Recycling Units . | . . . . . . Scanalyzers . | . . . . . . Garrison Access . | . . . . . . Total Hacks 59 | . 20 6 31 . 2 Successful 35 | . 10 4 19 . 2 Failed 22 | . 9 2 11 . . Catastrophic 2 | . 1 . 1 . . Database Lockouts 2 | . 1 . 1 . . Manual 45 | . 19 5 20 . 1 Terminals 52 | . 20 5 27 . . Fabricators . | . . . . . . Repair Stations 4 | . . . 4 . . Recycling Units . | . . . . . . Scanalyzers . | . . . . . . Garrison Access . | . . . . . . Terminal Hacks 18 | . 4 4 8 . 2 Record 1 | . . . . . 1 Robot Analysis 3 | . 2 . 1 . . Prototype ID Bank 4 | . 1 3 . . . Open Door 1 | . . 1 . . . Terminal Index 1 | . 1 . . . . Alert Level 1 | . . . 1 . . Unreport Threat 1 | . . . 1 . . Locate Traps 3 | . . . 3 . . Transport Status 1 | . . . 1 . . Hauler Manifests 1 | . . . 1 . . EX-Prototype ID Bank 1 | . . . . . 1 Fabricator Hacks . | . . . . . . Repair Station Hacks 4 | . . . 4 . . Scan Component 2 | . . . 2 . . Repair 2 | . . . 2 . . Recycling Unit Hacks . | . . . . . . Scanalyzer . | . . . . . . Garrison Access Hacks . | . . . . . . Unauthorized Hacks 13 | . 6 . 7 . . Terminals 13 | . 6 . 7 . . Track 4 | . 1 . 3 . . Assimilate 2 | . 2 . . . . Botnet 6 | . 2 . 4 . . Operators 1 | . 1 . . . . Fabricators . | . . . . . . Repair Stations . | . . . . . . Recycling Units . | . . . . . . Scanalyzers . | . . . . . . Garrison Access . | . . . . . . Data Cores Recovered . | . . . . . . Used . | . . . . . . Hacking Detections 13 | . 6 1 6 . . Full Trace Events . | . . . . . . Feedback Events . | . . . . . . Feedback Blocked . | . . . . . . Robot Schematics Acquired . | . . . . . . Robots Built . | . . . . . . Matter . | . . . . . . Time . | . . . . . . Total Robot Build Rating . | . . . . . . Part Schematics Acquired . | . . . . . . Parts Built . | . . . . . . Matter . | . . . . . . Time . | . . . . . . Total Part Build Rating . | . . . . . . Parts Repaired 2 | . . . 2 . . Time 70 | . . . 70 . . Parts Recycled . | . . . . . . Recycled Matter . | . . . . . . Retrieved Matter . | . . . . . . Retrieved Components . | . . . . . . Parts Scanalyzed . | . . . . . . Part Schematics Acquired . | . . . . . . Parts Damaged . | . . . . . . Bothacking | -11 -10 -10 -9 -9 -9 ------------ Run | Scr Mat Min Mat Min Exi Used RIF Installer . | . . . . . . Robots Hacked . | . . . . . . Non-combat . | . . . . . . Combat . | . . . . . . Robot Hacks Applied . | . . . . . . Relay Couplers Released . | . . . . . . Robots Rewired . | . . . . . . Allies Hacked . | . . . . . . Hacks Repelled . | . . . . . . Allies | -11 -10 -10 -9 -9 -9 -------- Run | Scr Mat Min Mat Min Exi Total Allies 3 | . 2 1 . . . Largest Group 2 | . 2 2 1 . . Highest-Rated Group 41 | . 20 41 10 . . Highest-Rated Ally 31 | . 10 31 10 . . Total Orders 2 | . . 2 . . . STAY 1 | . . 1 . . . FOLLOW 1 | . . 1 . . . Ally Attacks 13 | . . 13 . . . Total Damage 209 | . . 209 . . . Kills 4 | . . 4 . . . Allies Corrupted . | . . . . . . Allies Melted . | . . . . . . Intel | -11 -10 -10 -9 -9 -9 ------- Run | Scr Mat Min Mat Min Exi Robot Analysis Total 3 | . 2 . 1 . . Derelict Logs Recovered 2 | . . 1 . 1 . Drone Launches . | . . . . . . Drone Recoveries . | . . . . . . Exploration | -11 -10 -10 -9 -9 -9 ------------- Run | Scr Mat Min Mat Min Exi Turns Passed 7170 | 89 1227 1089 1684 1902 1179 Spaces Moved 3099 | 44 555 624 723 644 509 Core 15 | 15 . . . . . Treads 3084 | 29 555 624 723 644 509 Legs . | . . . . . . Wheels . | . . . . . . Hover . | . . . . . . Flight . | . . . . . . Fastest Speed 50 | 50 160 160 160 185 165 Average Speed 174 | 122 160 160 176 185 198 Slowest Speed 205 | 160 160 160 190 185 205 Overloaded Moves . | . . . . . . Propulsion Burnouts . | . . . . . . Robots Hopped . | . . . . . . Cave-ins Triggered . | . . . . . . Exploration Rate (%) 70 | 5 89 99 62 95 70 Regions Visited 5 Branch Regions 3 Pre-discovered Areas 2 | . . 1 . . 1 Known Exits Taken . | . . . . . . Unknown Exits Taken 5 | 1 1 1 1 1 . Scrap Searched 3 | . . 1 . 2 . Spaces Dug 10 | . 9 . 1 . . Terrain Destroyed 61 | . 9 . 22 13 17 Melee 1 | . . . 1 . . Projectile 9 | . 9 . . . . AOE 51 | . . . 21 13 17 Terrain Rammed . | . . . . . . Walls Destroyed . | . . . . . . Machines Disabled . | . . . . . . Actions | -11 -10 -10 -9 -9 -9 --------- Run | Scr Mat Min Mat Min Exi Total 4477 | 67 796 688 1015 1309 602 Wait 1019 | . 176 36 157 632 18 Move 3094 | 43 554 623 722 643 509 Hop . | . . . . . . Pick Up 64 | 10 9 6 25 1 13 Fast Attach 5 | . . . 4 . 1 Attach 14 | 7 . . 7 . . Detach . | . . . . . . Swap 43 | 1 15 . 14 6 7 Drop 35 | . 1 6 21 1 6 Fire 153 | 6 41 14 63 17 12 Melee 42 | . . . 2 5 35 Ram . | . . . . . . Kick . | . . . . . . Crush 7 | . . 3 . 4 . Escape Stasis . | . . . . . . Rewire . | . . . . . . Trap 1 | . . . . . 1 Miscellaneous . | . . . . . . Route ------- -11/Scrapyard -10/Materials (discovered 4 exits: *Mat x3 / *Min) -10/Mines (discovered 2 exits: *Mat x2) -9/Materials (discovered 3 exits: [*Mat x2] / [*Min]) -9/Mines (discovered 3 exits: [*Mat x2] / *Exi) -9/Exiles History --------- Turn | Location | Event 35 | -11/Scrapyard | Discovered new exit (range 15) 90 | -11/Scrapyard | Entered Materials 309 | -10/Materials | Build established: Mutant 391 | -10/Materials | Discovered new exit (range 9) 406 | -10/Materials | Discovered new exit (range 11) 595 | -10/Materials | Discovered new exit (range 13) 826 | -10/Materials | Discovered new exit (range 10) 1171 | -10/Materials | Central database locked down 1317 | -10/Materials | Entered Mines 1317 | -10/Mines | Accompanied by 1 ally 1342 | -10/Mines | Met a Derelict testing a Signal Generator 1361 | -10/Mines | Found Signal Generator 1486 | -10/Mines | Discovered new exit (range 8) 1656 | -10/Mines | Discovered new exit (range 10) 1687 | -10/Mines | Met a Derelict who couldn't figure out how to use a Trap Extractor 2312 | -10/Mines | Found a hidden stash of uninstalled traps 2331 | -10/Mines | Learned location of Storage (-8) 2406 | -10/Mines | Entered Materials 2406 | -9/Materials | Accompanied by 1 ally 2406 | -9/Materials | Evolved 2 slots: Utility x2 2429 | -9/Materials | Central database locked down 2632 | -9/Materials | Lost 5 parts (1p2n1u1w) 2786 | -9/Materials | Discovered new exit (range 14) 3131 | -9/Materials | Discovered new exit (range 15) 3720 | -9/Materials | Repaired Med. Armor Plating 3918 | -9/Materials | Discovered new exit (range 7) 4058 | -9/Materials | Repaired Arm. Treads 4090 | -9/Materials | Entered Mines 4109 | -9/Mines | Met a Derelict bent on vengeance 4228 | -9/Mines | Assembled infested the area 5117 | -9/Mines | Discovered new exit (range 14) 5237 | -9/Mines | Discovered new exit (range 6) 5329 | -9/Mines | Learned Materials stockpile data 5429 | -9/Mines | A weapon hastily lodged in a ceiling crevice suddenly fell to the ground 5985 | -9/Mines | Discovered new exit (range 5) 5992 | -9/Mines | Entered Exiles 6039 | -9/Exiles | Met 8R-AWN 6068 | -9/Exiles | Met EX-HEX 6152 | -9/Exiles | Met EX-DEC 6187 | -9/Exiles | Learned location of Zion (-6) 6434 | -9/Exiles | Met EX-BIN 6459 | -9/Exiles | Aligned with FarCom system 6461 | -9/Exiles | Given EX-Vault access code 6508 | -9/Exiles | Opened EX-Vault 6526 | -9/Exiles | Found Field Lobotomy Kit 6540 | -9/Exiles | Found Modified TNC 6575 | -9/Exiles | Build established: Hauler-Mutant 6582 | -9/Exiles | Warned to stay clear of 0b10 Research branches 6964 | -9/Exiles | Attacked by the Exiles 7078 | -9/Exiles | Core integrity fell below 50% 7127 | -9/Exiles | Lost 4 parts (2n2u) 7146 | -9/Exiles | Core integrity fell below 20% 7171 | -9/Exiles | Destroyed by 8R-AWN with 8R-AWN's Boregun Last Messages --------------- 07128_ Penetrated by HV Slug. 07141_ HV Slug penetrates Machine. 07141_ Machine disabled. 07141_ HV Slug penetrates Machine. 07141_ Penetrated by HV Slug. 07141_ HV Slug penetrates Wall. 07141_ Katana follow-up attack on 8R-AWN. 07145_ Penetrated by HV Slug. 07149_ HV Slug penetrates Machine. 07149_ Penetrated by HV Slug. 07149_ HV Slug penetrates Wall. 07154_ Penetrated by HV Slug. 07162_ Destroyed Prototype Device. 07162_ Penetrated by HV Slug. 07162_ HV Slug penetrates Machine. 07162_ HV Slug penetrates Wall. 07166_ Penetrated by HV Slug. 07166_ Critical hit. 07166_ Hvy. Ion Engine destroyed. 07171_ Penetrated by HV Slug. Map ----- +----------------------------------------------------+ | ?????????????????????????????????????????????????? | | ?????????????????????????????????????????????????? | | ?????????????????????????????????????????????????? | | ?????????????##??????????????????????????????????? | | ?????????????# ??????????????????????????????????? | | ?????????????# ?????????????????????????????????? | | ?????????????# ????????????????????????????????? | | ?????????????# ???????????????????????????????? | | ?????????????# ???????????????????????????????? | | ??????????????# ??????????????????????????????? | | ??????????????# ?????????????????????????????? | | ???????????????# ?????????????#######????????? | | ???????????????# #######??????#!!! "#????????? | | ????????????? ?# #""##?????# "##???????? | | ?????????????? ?# #????## " #???????? | | ??????????????? ##" ##???# ##???????? | | ???????????????#;"" ##### #???????? | | ????????????????#;## ##" #???????? | | ?????????????????# ## #" ##???????? | | ??????????????????# #"## ##??????? | | ??????????????????? ;#?#### # # ?????? | | ??????????????????## #???### % #????? | | ??????????????????? ;#;#####" ##????? | | ????????????????????# !! """ %# #???? | | ????????????????????#! = "## ###?? | | ????????????????????#! @ "####" "### | | ????????????????????# g ##??#" | | ????????????????????# ! """""###???#"# | | ????????????????????##########?????#### | | ??????????????????????????????????????### | | ????????????????????????????????????????### | | ??????????????????????????????????????????## | | ???????????????????????????????????????????## | | ????????????????????????????????????????????##" | | ?????????????????????????????????????????????#""" | | ????????????????????????????????????????????##" | | ????????????????????????????????????????????#"" | | ????????????????????????????????????????????#""" | | ???????????????????????????????????????????#""" | | ???????????????????????????????????????????#""" | | ???????????????????????????????????????????#"" | | ???????????????????????????????????????????#""" | | ???????????????????????????????????????????#"" | | ???????????????????????????????????????????##"" | | ????????????????????????????????????????????#"""" | | ????????????????????????????????????????????## | | ?????????????????????????????????????????????#" | | ?????????????????????????????????????????????#"""" | | ?????????????????????????????????????????????#"" | | ??????????????????????????????????????????????" | +----------------------------------------------------+ Best States ------------- Heat Dissipation 28 Energy Generation 14 Energy Capacity 280 Matter Stores 300 Matter Capacity 300 Sight Range 16 Terrain Scan Density 10 Armor Coverage 450 Evasion (%) 50 Targeting Accuracy 8 Recoil Reduction 2 Item Schematics ----------------- None Robot Schematics ------------------ None Fabricated ------------ Nothing Alien Tech Used ----------------- None Achievements -------------- None Challenges ------------ None Game ------ Seed ImprovedLinearCleaver Manual? 0 Play Time 00:53:27 Cumulative 388.7 hours Start 2021.03.28 @ 16:15:02 End 2021.03.28 @ 17:09:17 Sessions 1 Manual Loads 0 Difficulty Rogue Special Mode None Game No. 129 Rogue 125 Adventurer 4 Explorer 0 Win Type - Total 9 Types 4/1/3/0/0/0/0/1/0 Lore% 79 Gallery% 82 Achievement% 68 Wizard Run 0 Options --------- ASCII 1 Keyboard 0 Movement Arrows Keybinds 0 Fullscreen 1 Font 18/Terminus Map View 76x50 Tactical HUD 1 Map Filters NONE Filters NONE Steam 1 RUN: ebb3aa69-cb67-4c1d-8c13-6cb835835393